bitfinex-derivatives/quotes_BTCF0:USTF0_20241013
["timestamp","ask_amount","ask_price","bid_price","bid_amount"]
[1728810434573,0.1460832,62875.0,62874.0,0.0024]
[1728810434868,0.23926418,62875.0,62874.0,0.0024]
[1728810435172,0.27678964,62875.0,62874.0,0.0024]
[1728810437273,0.13410644,62875.0,62874.0,0.0024]
[1728810440278,0.0034,62875.0,62874.0,0.0024]
[1728810440779,0.13416205,62875.0,62874.0,0.0024]
[1728810441874,0.0034,62875.0,62874.0,0.0024]
[1728810442377,0.13414401,62875.0,62874.0,0.0024]
[1728810442576,0.09660777,62875.0,62874.0,0.0024]
[1728810443076,0.0034,62875.0,62874.0,0.0024]
[1728810444087,0.27184284,62878.0,62875.0,0.0004]
[1728810444381,0.27104284,62878.0,62875.0,0.0004]
[1728810445272,0.27104284,62878.0,62876.0,0.10552727]
[1728810445482,0.27104284,62878.0,62877.0,0.23131173]
[1728810445677,0.27204284,62878.0,62877.0,0.23131173]
[1728810446673,0.27204284,62878.0,62877.0,0.23231173]
[1728810447685,0.27104284,62878.0,62877.0,0.23331173]
[1728810449487,0.40523153,62878.0,62877.0,0.002]
[1728810455686,0.24671969,62878.0,62877.0,0.002]
[1728810456575,0.112531,62878.0,62877.0,0.23148355]
[1728810456977,0.112531,62878.0,62877.0,0.23147682]
[1728810461890,0.112531,62878.0,62877.0,0.231478]
[1728810464488,0.112531,62878.0,62877.0,0.002]
[1728810464489,0.19581797,62878.0,62877.0,0.002]
[1728810464682,0.19581797,62878.0,62873.0,0.2198787]
[1728810464683,0.2467716,62878.0,62873.0,0.14065515]
[1728810464884,0.2467716,62878.0,62873.0,0.22019115]
[1728810464885,0.0004,62874.0,62873.0,0.22019115]
[1728810465087,0.08368697,62874.0,62873.0,0.22019115]
[1728810465594,0.1346406,62874.0,62873.0,0.22019115]
[1728810465789,0.1346406,62874.0,62873.0,0.10877459]
[1728810466092,0.1346406,62874.0,62873.0,0.10977459]
[1728810466483,0.19252168,62874.0,62873.0,0.10977459]
[1728810466685,0.1332579,62874.0,62873.0,0.11077459]
[1728810467993,0.1332579,62874.0,62873.0,0.10977459]
[1728810468191,0.1342579,62874.0,62873.0,0.11077459]
[1728810468796,0.13422451,62874.0,62873.0,0.11077459]
[1728810471296,0.09031145,62874.0,62873.0,0.11077459]
[1728810471497,0.08421442,62874.0,62873.0,0.11077459]
[1728810471692,0.112531,62878.0,62873.0,0.48757018]
[1728810471998,0.112531,62878.0,62875.0,0.11142581]
[1728810472295,0.112531,62878.0,62876.0,0.23071174]
[1728810472498,0.112531,62878.0,62877.0,0.23071174]
[1728810474195,0.05681604,62878.0,62877.0,0.23171174]
[1728810474990,0.05681604,62878.0,62877.0,0.23271174]
[1728810480611,0.05681604,62878.0,62877.0,0.23174558]
[1728810482623,0.05681604,62878.0,62877.0,0.10681277]
[1728810484319,0.05681604,62878.0,62877.0,0.10681487]
[1728810485219,0.05681604,62878.0,62877.0,0.23175012]
[1728810486619,0.18374757,62878.0,62877.0,0.002]
[1728810486815,0.26674553,62878.0,62877.0,0.002]
[1728810488206,0.19059386,62878.0,62877.0,0.002]
[1728810488611,0.13377782,62878.0,62877.0,0.002]
[1728810488811,0.1338014,62878.0,62877.0,0.002]
[1728810489316,0.08920093,62878.0,62877.0,0.002]
[1728810489522,0.14283477,62878.0,62877.0,0.002]
[1728810489912,0.20997863,62878.0,62877.0,0.002]
[1728810491122,0.08301448,62878.0,62877.0,0.002]
[1728810491618,0.03841401,62878.0,62877.0,0.002]
[1728810492522,0.04467571,62878.0,62877.0,0.002]
[1728810492819,0.08308972,62879.0,62877.0,0.002]
[1728810493026,0.08308972,62878.0,62877.0,0.002]
[1728810493822,0.03841401,62878.0,62877.0,0.001]
[1728810494026,0.03841401,62878.0,62877.0,0.002]
[1728810494327,0.03841401,62880.0,62877.0,0.002]
[1728810494510,0.08305599,62880.0,62879.0,0.11]
[1728810494717,0.3608,62881.0,62879.0,0.33958453]
[1728810494926,0.3608,62881.0,62880.0,0.1047393]
[1728810495129,0.079525,62883.0,62880.0,0.1047393]
[1728810495317,0.079525,62883.0,62882.0,0.09548061]
[1728810495517,0.079525,62883.0,62882.0,0.20021991]
[1728810497019,0.079525,62883.0,62882.0,0.1047393]
[1728810497225,0.079525,62883.0,62882.0,0.1067393]
[1728810498229,0.079525,62883.0,62882.0,0.10673101]
[1728810501726,0.27357543,62883.0,62879.0,0.03241017]
[1728810502024,0.0004,62880.0,62879.0,0.03241017]
[1728810502228,0.03885016,62880.0,62879.0,0.03241017]
[1728810502423,0.1343273,62880.0,62879.0,0.03241017]
[1728810502628,0.21335933,62880.0,62879.0,0.03241017]
[1728810502825,0.30104799,62880.0,62879.0,0.03341017]
[1728810503124,0.13193299,62880.0,62879.0,0.03341017]
[1728810503329,0.13293299,62880.0,62879.0,0.03441017]
[1728810503826,0.13293299,62880.0,62879.0,0.03341017]
[1728810504034,0.13293299,62880.0,62879.0,0.03441017]
[1728810505621,0.13293285,62880.0,62879.0,0.03441017]
[1728810507626,0.13292945,62880.0,62879.0,0.03441017]
[1728810509625,0.0014,62880.0,62879.0,0.26522864]
[1728810516138,0.079527,62881.0,62879.0,0.26522864]
[1728810516329,0.079527,62881.0,62880.0,0.23081847]
[1728810516632,0.079527,62881.0,62880.0,0.10530349]
[1728810519033,0.079527,62881.0,62880.0,0.10630349]
[1728810519242,0.079527,62881.0,62880.0,0.10730349]
[1728810524734,0.079527,62881.0,62874.0,0.06358]
[1728810524735,0.16123419,62881.0,62874.0,0.06358]
[1728810524935,0.19081504,62880.0,62876.0,0.079533]
[1728810525134,0.079527,62881.0,62876.0,0.079533]
[1728810525135,0.19081504,62879.0,62876.0,0.079533]
[1728810525337,0.19081504,62878.0,62876.0,0.079533]
[1728810525536,0.19081504,62877.0,62876.0,0.079533]
[1728810525846,0.13169434,62877.0,62876.0,0.079533]
[1728810526142,0.13169434,62877.0,62876.0,0.080533]
[1728810527542,0.13269434,62877.0,62876.0,0.081533]
[1728810527747,0.13269434,62877.0,62876.0,0.080533]
[1728810527937,0.13369434,62877.0,62876.0,0.081533]
[1728810531847,0.002,62877.0,62876.0,0.57079477]
[1728810534349,0.079527,62881.0,62876.0,0.45938736]
[1728810534550,0.079527,62881.0,62878.0,0.11140792]
[1728810534751,0.079527,62881.0,62879.0,0.2321043]
[1728810534952,0.079527,62881.0,62880.0,0.2321043]
[1728810535549,0.080527,62881.0,62880.0,0.2321043]
[1728810535946,0.079527,62881.0,62880.0,0.2321043]
[1728810536253,0.080527,62881.0,62880.0,0.2331043]
[1728810537357,0.080527,62881.0,62880.0,0.2341043]
[1728810539754,0.080527,62881.0,62878.0,0.11140792]
[1728810539755,0.15903976,62881.0,62878.0,0.11140792]
[1728810539955,0.07851276,62880.0,62878.0,0.11140792]
[1728810540157,0.12773589,62879.0,62878.0,0.11140792]
[1728810540657,0.12773593,62879.0,62878.0,0.11140792]
[1728810540958,0.12773593,62879.0,62878.0,0.11240792]
[1728810541257,0.12773593,62879.0,62878.0,0.11340792]
[1728810541652,0.12773593,62879.0,62878.0,0.11240792]
[1728810541858,0.12773593,62879.0,62878.0,0.11340792]
[1728810544256,0.12771637,62879.0,62878.0,0.11340792]
[1728810546752,0.0004,62879.0,62878.0,0.34702079]
[1728810547053,0.0004,62879.0,62878.0,0.23561287]
[1728810548850,0.0004,62879.0,62878.0,0.23423166]
[1728810551856,0.079527,62881.0,62878.0,0.23423166]
[1728810552052,0.079527,62881.0,62879.0,0.23223166]
[1728810552252,0.079527,62881.0,62880.0,0.23223166]
[1728810553062,0.080527,62881.0,62880.0,0.23223166]
[1728810553666,0.080527,62881.0,62880.0,0.23323166]
[1728810553964,0.081527,62881.0,62880.0,0.23423166]
[1728810554858,0.081527,62881.0,62876.0,0.079533]
[1728810554859,0.21067799,62881.0,62876.0,0.079533]
[1728810555065,0.0004,62877.0,62876.0,0.079533]
[1728810555262,0.08052922,62877.0,62876.0,0.079533]
[1728810555460,0.12955099,62877.0,62876.0,0.079533]
[1728810555867,0.25517022,62877.0,62876.0,0.079533]
[1728810556063,0.30419199,62877.0,62876.0,0.080533]
[1728810556572,0.28831459,62877.0,62876.0,0.080533]
[1728810556755,0.29031459,62877.0,62876.0,0.081533]
[1728810556961,0.29131459,62877.0,62876.0,0.081533]
[1728810558371,0.28962214,62877.0,62876.0,0.081533]
[1728810560061,0.13085854,62877.0,62876.0,0.081533]
[1728810561870,0.0034,62877.0,62876.0,0.46244479]
[1728810564678,0.079528,62880.0,62876.0,0.46244479]
[1728810564869,0.079528,62880.0,62878.0,0.11142088]
[1728810565071,0.079528,62880.0,62879.0,0.2334925]
[1728810565474,0.079528,62880.0,62879.0,0.34491338]
[1728810565769,0.081528,62880.0,62879.0,0.34485865]
[1728810566077,0.081528,62880.0,62879.0,0.49224273]
[1728810566579,0.081528,62880.0,62879.0,0.49324273]
[1728810566876,0.081528,62880.0,62879.0,0.49424273]
[1728810567774,0.081528,62880.0,62879.0,0.49424282]
[1728810568667,0.081528,62880.0,62879.0,0.34685878]
[1728810568867,0.081528,62880.0,62879.0,0.2354379]
[1728810569873,0.081528,62880.0,62879.0,0.10849725]
[1728810576776,0.166769,62880.0,62879.0,0.002]
[1728810576981,0.166769,62880.0,62874.0,0.53442]
[1728810576982,0.20905179,62880.0,62874.0,0.48860978]
[1728810577185,0.0004,62875.0,62874.0,0.48748978]
[1728810577483,0.12792391,62875.0,62874.0,0.48748978]
[1728810577977,0.12792391,62875.0,62874.0,0.12768978]
[1728810578177,0.12792391,62875.0,62874.0,0.48848978]
[1728810579176,0.12892391,62875.0,62874.0,0.48948978]
[1728810579378,0.12992391,62875.0,62874.0,0.48948978]
[1728810579578,0.12992391,62875.0,62874.0,0.12868978]
[1728810579783,0.12992391,62875.0,62874.0,0.48948978]
[1728810582085,0.12992391,62875.0,62874.0,0.3628]
[1728810582086,0.20945791,62875.0,62874.0,0.3628]
[1728810584377,0.20945791,62875.0,62874.0,0.002]
[1728810584791,0.081934,62875.0,62874.0,0.23641344]
[1728810585278,0.0024,62875.0,62874.0,0.23641344]
[1728810585884,0.0024,62875.0,62874.0,0.34641344]
[1728810586682,0.0024,62875.0,62874.0,0.34756024]
[1728810588480,0.13890031,62878.0,62874.0,0.60810252]
[1728810588684,0.13890031,62878.0,62875.0,0.23556024]
[1728810588685,0.11,62878.0,62875.0,0.23556024]
[1728810588885,0.11,62878.0,62874.0,0.22382088]
[1728810588886,0.11,62878.0,62876.0,0.23556024]
[1728810589192,0.07953,62879.0,62877.0,0.23556024]
[1728810589487,0.07953,62879.0,62876.0,0.11142088]
[1728810589488,0.07953,62879.0,62878.0,0.23556024]
[1728810589694,0.07953,62879.0,62878.0,0.85641353]
[1728810590284,0.07953,62879.0,62878.0,0.74499265]
[1728810590483,0.08053,62879.0,62878.0,0.74499265]
[1728810591089,0.08153,62879.0,62878.0,0.74599265]
[1728810591383,0.08153,62879.0,62878.0,0.74535155]
[1728810591899,0.20697788,62879.0,62878.0,0.3618]
[1728810592585,0.20597788,62879.0,62878.0,0.3628]
[1728810593188,0.20597788,62879.0,62878.0,0.002]
[1728810593393,0.20597788,62879.0,62878.0,0.3628]
[1728810596890,0.20597788,62879.0,62878.0,0.002]
[1728810598093,0.20597965,62879.0,62878.0,0.002]
[1728810599896,0.08053,62879.0,62878.0,0.23650117]
[1728810600594,0.08053,62879.0,62878.0,0.23651142]
[1728810601192,0.10921499,62879.0,62878.0,0.23651142]
[1728810604095,0.08053,62879.0,62878.0,0.23651142]
[1728810604298,0.08053,62879.0,62878.0,0.23605525]
[1728810607494,0.08053,62879.0,62878.0,0.2360905]
[1728810609102,0.08053,62879.0,62878.0,0.23607637]
[1728810613805,0.08053,62879.0,62878.0,0.2360969]
[1728810614904,0.20750449,62879.0,62878.0,0.002]
[1728810615111,0.28528483,62879.0,62878.0,0.002]
[1728810615309,0.15831034,62879.0,62878.0,0.002]
[1728810615804,0.28528483,62879.0,62878.0,0.002]
[1728810617001,0.15831034,62879.0,62878.0,0.002]
[1728810618505,0.28528483,62879.0,62878.0,0.002]
[1728810621003,0.15831034,62879.0,62878.0,0.002]
[1728810621205,0.28528483,62879.0,62878.0,0.002]
[1728810621710,0.15831034,62879.0,62878.0,0.002]
[1728810621909,0.08053,62879.0,62878.0,0.23609628]
[1728810625916,0.08053,62879.0,62878.0,0.12933825]
[1728810626119,0.08053,62879.0,62878.0,0.23616908]
[1728810627121,0.02481532,62879.0,62878.0,0.23616908]
[1728810627306,0.001,62879.0,62878.0,0.23616908]
[1728810628019,0.08053,62879.0,62878.0,0.23616908]
[1728810628219,0.08053,62879.0,62878.0,0.23529416]
[1728810629012,0.001,62879.0,62878.0,0.23529416]
[1728810630009,0.0798598,62879.0,62878.0,0.002]
[1728810632815,0.07999326,62879.0,62878.0,0.002]
[1728810636920,0.001,62879.0,62878.0,0.23518339]
[1728810637620,0.001,62879.0,62878.0,0.2351834]
[1728810640318,0.001,62879.0,62878.0,0.3451834]
[1728810641916,0.001,62879.0,62878.0,0.21838115]
[1728810642321,0.001,62879.0,62878.0,0.21836818]
[1728810645032,0.001,62879.0,62878.0,0.112]
[1728810645334,0.08001778,62879.0,62878.0,0.112]
[1728810647235,0.07999241,62879.0,62878.0,0.112]
[1728810647429,0.1288167,62879.0,62878.0,0.112]
[1728810648929,0.03755284,62879.0,62878.0,0.112]
[1728810649325,0.1288167,62879.0,62878.0,0.112]
[1728810652232,0.001,62879.0,62878.0,0.34517811]
[1728810657243,0.3608,62881.0,62878.0,0.34517811]
[1728810657543,0.3608,62881.0,62879.0,0.23317811]
[1728810657831,0.3608,62881.0,62880.0,0.23317811]
[1728810658534,0.0311,62882.0,62880.0,0.23317811]
[1728810658837,0.0311,62882.0,62881.0,0.2018758]
[1728810659037,0.3919,62882.0,62881.0,0.2018758]
[1728810660535,0.3919,62882.0,62881.0,0.2028758]
[1728810660930,0.3919,62882.0,62881.0,0.10838622]
[1728810662725,0.3919,62882.0,62881.0,0.2038758]
[1728810663128,0.0311,62882.0,62881.0,0.2038758]
[1728810663337,0.3919,62882.0,62881.0,0.2038758]
[1728810663530,0.3919,62882.0,62881.0,0.10838622]
[1728810664333,0.3919,62882.0,62881.0,0.23486174]
[1728810664534,0.3919,62882.0,62881.0,0.2345831]
[1728810665447,0.0311,62882.0,62881.0,0.2345831]
[1728810665736,0.3919,62882.0,62881.0,0.2345831]
[1728810667133,0.3919,62882.0,62878.0,0.03240866]
[1728810667134,0.5780715,62882.0,62878.0,0.03240866]
[1728810667444,0.17504658,62879.0,62878.0,0.03240866]
[1728810667744,0.21192117,62879.0,62878.0,0.03240866]
[1728810667943,0.30355861,62879.0,62878.0,0.03240866]
[1728810668931,0.30355861,62879.0,62878.0,0.03340866]
[1728810669331,0.30355861,62879.0,62878.0,0.03440866]
[1728810669538,0.30355861,62879.0,62878.0,0.03340866]
[1728810669837,0.12891203,62879.0,62878.0,0.03340866]
[1728810670038,0.12991203,62879.0,62878.0,0.03440866]
[1728810670242,0.30455861,62879.0,62878.0,0.03440866]
[1728810670839,0.12991203,62879.0,62878.0,0.03440866]
[1728810671747,0.12991203,62879.0,62878.0,0.002]
[1728810672843,0.23991203,62879.0,62878.0,0.002]
[1728810673748,0.23831701,62879.0,62878.0,0.002]
[1728810675141,0.1114,62879.0,62878.0,0.23591551]
[1728810675449,0.1114,62879.0,62878.0,0.10871151]
[1728810678550,0.1114,62879.0,62878.0,0.10869512]
[1728810682149,0.1894538,62879.0,62878.0,0.002]
[1728810683263,0.18952814,62879.0,62878.0,0.002]
[1728810683651,0.18952814,62879.0,62873.0,0.22831894]
[1728810683652,0.079534,62875.0,62873.0,0.22831894]
[1728810683857,0.31688809,62875.0,62873.0,0.22831894]
[1728810684052,0.26806214,62875.0,62873.0,0.22831894]
[1728810684861,0.26906214,62875.0,62874.0,0.0014]
[1728810685951,0.39599996,62875.0,62874.0,0.0014]
[1728810686155,0.31789276,62875.0,62874.0,0.0014]
[1728810686456,0.34721499,62875.0,62874.0,0.0014]
[1728810686658,0.34921499,62875.0,62874.0,0.0024]
[1728810686855,0.30038424,62875.0,62874.0,0.0024]
[1728810687961,0.40970627,62875.0,62874.0,0.0024]
[1728810688152,0.29970627,62875.0,62874.0,0.0024]
[1728810688348,0.40970627,62875.0,62874.0,0.0024]
[1728810688551,0.88686627,62875.0,62874.0,0.0024]
[1728810688754,0.77686627,62875.0,62874.0,0.0024]
[1728810689348,1.13766627,62875.0,62874.0,0.0024]
[1728810689950,0.66050627,62875.0,62874.0,0.0024]
[1728810690145,0.62466708,62875.0,62874.0,0.08194269]
[1728810690357,0.5830561,62875.0,62874.0,0.0024]
[1728810690857,0.5830561,62875.0,62869.0,0.09545123]
[1728810690858,0.079541,62870.0,62869.0,0.09545123]
[1728810691056,0.189541,62870.0,62869.0,0.10692483]
[1728810691252,0.189941,62870.0,62869.0,0.10692483]
[1728810691561,0.079547,62865.0,62864.0,0.09545123]
[1728810691854,0.079547,62865.0,62864.0,0.20184256]
[1728810692163,0.079947,62865.0,62864.0,0.20184256]
[1728810692354,0.079947,62865.0,62864.0,0.10639133]
[1728810692554,0.079947,62865.0,62864.0,0.10637207]
[1728810693357,0.080947,62865.0,62864.0,0.10637207]
[1728810693558,0.082947,62865.0,62864.0,0.10637207]
[1728810694265,0.081947,62865.0,62864.0,0.10637207]
[1728810694454,0.085947,62865.0,62864.0,0.10737207]
[1728810696256,0.085947,62865.0,62864.0,0.001]
[1728810697054,0.085947,62865.0,62861.0,0.0004]
[1728810697055,0.079551,62862.0,62861.0,0.0004]
[1728810697254,0.189551,62862.0,62861.0,0.10695341]
[1728810697460,0.189951,62862.0,62861.0,0.10694219]
[1728810697666,0.189951,62862.0,62861.0,0.0004]
[1728810698171,0.192951,62862.0,62861.0,0.0004]
[1728810700260,0.663751,62862.0,62861.0,0.0004]
[1728810700469,0.079558,62857.0,62854.0,0.12625123]
[1728810700658,0.30546561,62855.0,62854.0,0.0308]
[1728810700867,0.30546561,62855.0,62854.0,0.13744769]
[1728810701866,0.30546561,62855.0,62854.0,0.13707535]
[1728810702168,0.30546561,62855.0,62854.0,0.14407536]
[1728810702561,0.30546561,62855.0,62854.0,0.0378]
[1728810702763,0.0004,62855.0,62854.0,0.0378]
[1728810703061,0.0004,62855.0,62854.0,0.0408]
[1728810703565,0.0004,62855.0,62854.0,0.0378]
[1728810703868,0.0004,62855.0,62854.0,0.0408]
[1728810713370,0.0004,62855.0,62854.0,0.14706142]
[1728810716466,0.3612,62855.0,62854.0,0.14706142]
[1728810718171,0.3612,62855.0,62854.0,0.01]
[1728810720461,0.3612,62855.0,62850.0,0.0004]
[1728810720462,0.189565,62851.0,62850.0,0.0004]
[1728810720963,0.189565,62851.0,62850.0,0.074]
[1728810721674,0.299565,62851.0,62850.0,0.086]
[1728810722476,0.299565,62851.0,62850.0,0.093]
[1728810722477,0.300565,62851.0,62850.0,0.093]
[1728810722670,0.661365,62851.0,62850.0,0.093]
[1728810724479,0.551365,62851.0,62850.0,0.093]
[1728810725978,0.190565,62851.0,62850.0,0.093]
[1728810726187,0.551365,62851.0,62850.0,0.093]
[1728810726574,0.190565,62851.0,62850.0,0.093]
[1728810726884,0.551365,62851.0,62850.0,0.093]
[1728810727775,0.190565,62851.0,62850.0,0.093]
[1728810727976,0.551365,62851.0,62850.0,0.093]
[1728810728183,0.661365,62851.0,62850.0,0.093]
[1728810728878,0.300565,62851.0,62850.0,0.093]
[1728810729083,0.551365,62851.0,62850.0,0.093]
[1728810729280,0.661365,62851.0,62850.0,0.093]
[1728810729678,0.300565,62851.0,62850.0,0.093]
[1728810729880,0.661365,62851.0,62850.0,0.093]
[1728810730687,0.441365,62851.0,62850.0,0.093]
[1728810730872,0.661365,62851.0,62850.0,0.093]
[1728810732587,0.723565,62851.0,62850.0,0.093]
[1728810734177,1.084365,62851.0,62850.0,0.093]
[1728810734378,1.084365,62851.0,62848.0,0.0004]
[1728810734379,0.079567,62849.0,62848.0,0.0004]
[1728810734579,0.11607335,62849.0,62848.0,0.0004]
[1728810735588,0.11707335,62849.0,62848.0,0.0094]
[1728810735888,0.11807335,62849.0,62848.0,0.0224]
[1728810736679,0.47887335,62849.0,62848.0,0.0224]
[1728810739092,0.11807335,62849.0,62848.0,0.0224]
[1728810739585,0.47887335,62849.0,62848.0,0.0224]
[1728810741083,0.50736697,62849.0,62848.0,0.0224]
[1728810741282,0.14656697,62849.0,62848.0,0.0224]
[1728810741785,0.50736697,62849.0,62848.0,0.0224]
[1728810742384,0.47126062,62849.0,62848.0,0.10185893]
[1728810743184,0.47126062,62849.0,62848.0,0.0224]
[1728810743376,0.47126062,62849.0,62848.0,0.10185893]
[1728810743576,0.94858062,62849.0,62848.0,0.10185893]
[1728810743781,0.94858062,62849.0,62848.0,0.0224]
[1728810743981,0.47126062,62849.0,62848.0,0.0224]
[1728810744386,1.46901362,62849.0,62843.0,0.09758794]
[1728810744585,1.46901362,62849.0,62843.0,0.00238656]
[1728810744586,0.189974,62844.0,62843.0,0.00238656]
[1728810744888,0.189974,62844.0,62843.0,0.10912597]
[1728810745093,0.189974,62844.0,62843.0,0.10673941]
[1728810745482,0.189974,62844.0,62843.0,0.12773941]
[1728810746282,0.190974,62844.0,62843.0,0.12717372]
[1728810746890,0.190974,62844.0,62843.0,0.12017372]
[1728810747093,0.191974,62844.0,62843.0,0.12017372]
[1728810747592,0.191974,62844.0,62843.0,0.12021205]
[1728810747784,0.552774,62844.0,62843.0,0.12021205]
[1728810747982,0.552774,62844.0,62843.0,0.21541343]
[1728810748691,0.191974,62844.0,62843.0,0.21541343]
[1728810749095,0.552774,62844.0,62843.0,0.21541343]
[1728810750185,0.552774,62844.0,62843.0,0.12021205]
[1728810752396,0.552774,62844.0,62843.0,0.12023614]
[1728810752991,0.552774,62844.0,62843.0,0.21573408]
[1728810752992,0.191974,62844.0,62843.0,0.21573408]
[1728810753295,0.552774,62844.0,62843.0,0.21573408]
[1728810753496,0.191974,62844.0,62843.0,0.21573408]
[1728810753692,0.552774,62844.0,62843.0,0.21573408]
[1728810754389,0.191974,62844.0,62843.0,0.21573408]
[1728810754598,0.552774,62844.0,62843.0,0.21573408]
[1728810754793,0.552774,62844.0,62843.0,0.2157352]
[1728810755099,0.191974,62844.0,62843.0,0.2157352]
[1728810755290,0.552774,62844.0,62843.0,0.2157352]
[1728810755889,0.552774,62844.0,62843.0,0.12023726]
[1728810756893,0.552774,62844.0,62843.0,0.21573405]
[1728810757197,0.552774,62844.0,62843.0,0.12023726]
[1728810757496,0.68091644,62844.0,62843.0,0.014]
[1728810758495,0.32011644,62844.0,62843.0,0.014]
[1728810758707,0.68091644,62844.0,62843.0,0.014]
[1728810761698,0.68091837,62844.0,62843.0,0.014]
[1728810762199,0.68091839,62844.0,62843.0,0.014]
[1728810763090,0.32011839,62844.0,62843.0,0.014]
[1728810763294,0.68091839,62844.0,62843.0,0.014]
[1728810764496,0.191974,62844.0,62843.0,0.12025892]
[1728810764898,0.552774,62844.0,62843.0,0.12025892]
[1728810766706,0.191974,62844.0,62843.0,0.12025892]
[1728810767007,0.552774,62844.0,62843.0,0.12025892]
[1728810768096,0.191974,62844.0,62843.0,0.12025892]
[1728810768291,0.552774,62844.0,62843.0,0.12025892]
[1728810768498,0.191974,62844.0,62843.0,0.12025892]
[1728810768802,0.552774,62844.0,62843.0,0.12025892]
[1728810769301,0.552774,62844.0,62843.0,0.24693359]
[1728810771004,0.191974,62844.0,62843.0,0.24693359]
[1728810771302,0.552774,62844.0,62843.0,0.24693359]
[1728810771505,0.552774,62844.0,62843.0,0.21580214]
[1728810771695,0.191974,62844.0,62843.0,0.21580214]
[1728810771898,0.552774,62844.0,62843.0,0.21580214]
[1728810772605,0.63210028,62844.0,62843.0,0.014]
[1728810773303,0.27130028,62844.0,62843.0,0.014]
[1728810774112,0.63210028,62844.0,62843.0,0.014]
[1728810774704,0.39831525,62844.0,62843.0,0.014]
[1728810775094,0.75911525,62844.0,62843.0,0.014]
[1728810775700,0.39831525,62844.0,62843.0,0.014]
[1728810776309,0.75911525,62844.0,62843.0,0.014]
[1728810776499,0.39831525,62844.0,62843.0,0.014]
[1728810776701,0.75911525,62844.0,62843.0,0.014]
[1728810777005,0.82375819,62844.0,62843.0,0.014]
[1728810779206,0.68095666,62844.0,62843.0,0.014]
[1728810779416,0.82385239,62844.0,62843.0,0.014]
[1728810779600,0.82385239,62844.0,62843.0,0.24705182]
[1728810779601,0.552774,62844.0,62843.0,0.24705182]
[1728810780199,0.191974,62844.0,62843.0,0.12032112]
[1728810780510,0.552774,62844.0,62843.0,0.12032052]
[1728810781606,0.552774,62844.0,62843.0,0.24705056]
[1728810782703,0.442774,62844.0,62843.0,0.24705056]
[1728810782909,0.552774,62844.0,62843.0,0.24705056]
[1728810783306,0.191974,62844.0,62843.0,0.24705056]
[1728810783611,0.552774,62844.0,62843.0,0.24705056]
[1728810784120,0.191974,62844.0,62843.0,0.24708083]
[1728810784299,0.552774,62844.0,62843.0,0.24708083]
[1728810784506,0.191974,62844.0,62843.0,0.24708083]
[1728810784806,0.552774,62844.0,62843.0,0.24708083]
[1728810785705,0.191974,62844.0,62843.0,0.24708083]
[1728810785901,0.552774,62844.0,62843.0,0.24708083]
[1728810786506,0.191974,62844.0,62843.0,0.24708083]
[1728810786706,0.552774,62844.0,62843.0,0.24708083]
[1728810786907,0.191974,62844.0,62843.0,0.24708083]
[1728810787110,0.552774,62844.0,62843.0,0.24708083]
[1728810787616,0.552774,62844.0,62839.0,0.14536828]
[1728810787617,0.32155076,62844.0,62839.0,0.0343]
[1728810787807,0.25329555,62840.0,62839.0,0.0343]
[1728810788320,0.23997676,62840.0,62839.0,0.0343]
[1728810788911,0.19079338,62840.0,62839.0,0.0343]
[1728810789102,0.19179338,62840.0,62839.0,0.0343]
[1728810789298,0.19179338,62840.0,62839.0,0.0413]
[1728810790502,0.19179338,62840.0,62836.0,0.02950432]
[1728810790703,0.19179338,62840.0,62824.0,0.04778595]
[1728810790704,0.23741687,62837.0,62824.0,0.04778595]
[1728810790909,0.3608,62834.0,62830.0,0.11]
[1728810791204,0.05711203,62833.0,62831.0,0.07959]
[1728810791411,0.05711203,62833.0,62830.0,0.0001]
[1728810791412,0.03720113,62832.0,62830.0,0.0001]
[1728810791613,0.0199109,62833.0,62831.0,0.47748]
[1728810791801,0.23741687,62837.0,62831.0,0.47748]
[1728810791802,0.05570046,62832.0,62831.0,0.47748]
[1728810792010,0.05570046,62832.0,62830.0,0.11118]
[1728810792214,0.0199109,62832.0,62831.0,0.47748]
[1728810792409,0.05670053,62832.0,62831.0,0.47748]
[1728810792610,0.05770053,62832.0,62831.0,0.47748]
[1728810792807,0.05770053,62832.0,62831.0,0.55707]
[1728810793511,0.05670053,62832.0,62831.0,0.34800822]
[1728810793806,0.05770053,62832.0,62831.0,0.37990822]
[1728810794306,0.05770053,62832.0,62831.0,0.21265942]
[1728810794502,0.0219109,62832.0,62831.0,0.54985653]
[1728810794819,0.1112,62837.0,62831.0,0.54985653]
[1728810794820,0.38957596,62837.0,62833.0,0.079586]
[1728810795115,0.38957596,62837.0,62836.0,0.11149068]
[1728810795308,0.38957596,62837.0,62836.0,0.34623163]
[1728810795510,0.38957596,62837.0,62836.0,0.19690234]
[1728810796218,0.39057596,62837.0,62836.0,0.19690234]
[1728810796418,0.02977596,62837.0,62836.0,0.19690234]
[1728810796619,0.39057596,62837.0,62836.0,0.19690234]
[1728810797015,0.39157596,62837.0,62836.0,0.19690234]
[1728810797714,0.39057596,62837.0,62836.0,0.19690234]
[1728810797912,0.39157596,62837.0,62836.0,0.19690234]
[1728810802614,0.42996193,62837.0,62834.0,0.079586]
[1728810802814,0.0004,62835.0,62834.0,0.079586]
[1728810803014,0.03878597,62835.0,62834.0,0.079586]
[1728810804715,0.03878597,62835.0,62834.0,0.09085456]
[1728810806021,0.03978597,62835.0,62834.0,0.09085456]
[1728810806221,0.04078597,62835.0,62834.0,0.09085456]
[1728810806427,0.04081506,62835.0,62834.0,0.09085456]
[1728810806625,0.08541624,62835.0,62834.0,0.09085456]
[1728810807130,0.0854195,62835.0,62834.0,0.09085456]
[1728810807826,0.04081506,62835.0,62834.0,0.09085456]
[1728810808231,0.04081506,62835.0,62834.0,0.09085301]
[1728810808426,0.04081506,62835.0,62834.0,0.079586]
[1728810808633,0.04081506,62835.0,62834.0,0.09085289]
[1728810809325,0.0024,62835.0,62834.0,0.09085289]
[1728810809530,0.08539998,62835.0,62834.0,0.09085289]
[1728810809829,0.0024,62835.0,62834.0,0.59330247]
[1728810810720,0.0024,62835.0,62834.0,0.46588406]
[1728810811715,0.0024,62835.0,62834.0,0.45461717]
[1728810812123,0.0024,62835.0,62834.0,0.4658838]